fUSD/lending_fUSD_20240210
["ID","MTS","AMOUNT","RATE_DAILY","PERIOD"]
[313687444,1707587149108,-696.24,0.00038356,30]
[313687445,1707587149130,-500.0,0.00038356,30]
[313687446,1707587149152,-500.0,0.00038356,30]
[313687447,1707587149175,-500.0,0.00038356,30]
[313687448,1707587149362,-500.0,0.00038356,30]
[313687449,1707587149384,-500.0,0.00038356,30]
[313687450,1707587149406,-500.0,0.00038356,30]
[313687451,1707587149428,-620.76761256,0.00038356,30]
[313687452,1707587149450,-500.0,0.00038356,30]
[313687453,1707587149472,-500.0,0.00038356,30]
[313687454,1707587149493,-500.0,0.00038356,30]
[313687455,1707587149516,-500.0,0.00038356,30]
[313687456,1707587149540,-504.18279432,0.00038356,30]
[313687457,1707587149567,-500.0,0.00038356,30]
[313687458,1707587149594,-583.97,0.00038356,30]
[313687459,1707587149616,-500.0,0.00038356,30]
[313687460,1707587149638,-500.0,0.00038356,30]
[313687461,1707587149661,-500.0,0.00038356,30]
[313687462,1707587149684,-500.0,0.00038356,30]
[313687463,1707587149705,-500.0,0.00038356,30]
[313687464,1707587149727,-794.2,0.00038356,30]
[313687465,1707587149751,-500.0,0.00038356,30]
[313687466,1707587149774,-500.0,0.00038356,30]
[313687467,1707587149797,-500.0,0.00038356,30]
[313687468,1707587149820,-500.0,0.00038356,30]
[313687469,1707587149844,-500.0,0.00038356,30]
[313687470,1707587149865,-500.0,0.00038356,30]
[313687471,1707587149887,-500.0,0.00038356,30]
[313687472,1707587149909,-500.0,0.00038356,30]
[313687473,1707587149931,-500.0,0.00038356,30]
[313687474,1707587149953,-500.0,0.00038356,30]
[313687475,1707587149974,-506.86908688,0.00038356,30]
[313687476,1707587149996,-500.0,0.00038356,30]
[313687477,1707587150018,-590.0,0.00038356,30]
[313687478,1707587150040,-500.0,0.00038356,30]
[313687479,1707587150062,-500.0,0.00038356,30]
[313687480,1707587150086,-502.13037661,0.00038356,30]
[313687481,1707587150109,-500.0,0.00038356,30]
[313687482,1707587150134,-500.0,0.00038356,30]
[313687483,1707587150157,-500.0,0.00038356,30]
[313687484,1707587150181,-500.0,0.00038356,30]
[313687485,1707587150204,-506.29947746,0.00038356,30]
[313687486,1707587150226,-500.0,0.00038356,30]
[313687487,1707587150259,-505.87874353,0.00038356,30]
[313687488,1707587150284,-500.0,0.00038356,30]
[313687489,1707587150308,-500.0,0.00038356,30]
[313687490,1707587150332,-500.0,0.00038356,30]
[313687491,1707587150355,-500.0,0.00038356,30]
[313687492,1707587150379,-500.0,0.00038356,30]
[313687493,1707587150402,-500.0,0.00038356,30]
[313687494,1707587150426,-500.0,0.00038356,30]
[313687495,1707587150449,-500.0,0.00038356,30]
[313687496,1707587150472,-165.56998867,0.00038356,30]
[313687497,1707587150494,-508.49288239,0.00038356,30]
[313687498,1707587150517,-500.0,0.00038356,30]
[313687499,1707587150541,-500.0,0.00038356,30]
[313687500,1707587150564,-500.0,0.00038356,30]
[313687501,1707587150590,-528.60308805,0.00038356,30]
[313687502,1707587150613,-500.0,0.00038356,30]
[313687503,1707587150637,-500.0,0.00038356,30]
[313687504,1707587150661,-500.0,0.00038356,30]
[313687505,1707587150685,-500.0,0.00038356,30]
[313687506,1707587150708,-500.0,0.00038356,30]
[313687507,1707587150731,-500.0,0.00038356,30]
[313687508,1707587150755,-500.0,0.00038356,30]
[313687509,1707587150777,-500.0,0.00038356,30]
[313687510,1707587150801,-500.0,0.00038356,30]
[313687511,1707587150824,-500.0,0.00038356,30]
[313687512,1707587150849,-500.0,0.00038356,30]
[313687513,1707587150873,-332.648661,0.00038356,30]
[313687514,1707587150897,-510.71072158,0.00038356,30]
[313687515,1707587150923,-500.0,0.00038356,30]
[313687516,1707587150948,-150.0,0.00038356,30]
[313687517,1707587150972,-500.0,0.00038356,30]
[313687518,1707587150996,-500.0,0.00038356,30]
[313687519,1707587151020,-500.0,0.00038356,30]
[313687520,1707587151045,-1137.16,0.00038356,30]
[313687521,1707587151069,-500.0,0.00038356,30]
[313687522,1707587151092,-500.0,0.00038356,30]
[313687523,1707587151115,-585.8282045,0.00038356,30]
[313687524,1707587151139,-500.0,0.00038356,30]
[313687525,1707587151164,-500.0,0.00038356,30]
[313687526,1707587151189,-515.59032143,0.00038356,30]
[313687527,1707587151213,-500.0,0.00038356,30]
[313687528,1707587151237,-500.0,0.00038356,30]
[313687529,1707587151266,-152.27831469,0.00038356,30]
[313687530,1707587151289,-500.0,0.00038356,30]
[313687531,1707587151313,-500.0,0.00038356,30]
[313687532,1707587151338,-396.33282604,0.00038356,30]
[313687533,1707587151361,-500.0,0.00038356,30]
[313687534,1707587151385,-504.87194079,0.00038356,30]
[313687535,1707587151408,-500.0,0.00038356,30]
[313687536,1707587151433,-500.0,0.00038356,30]
[313687537,1707587151457,-500.0,0.00038356,30]
[313687538,1707587151481,-507.52817391,0.00038356,30]
[313687539,1707587151506,-1314.29,0.00038356,30]
[313687540,1707587151530,-511.94285043,0.00038356,30]
[313687541,1707587151554,-1066.72,0.00038356,30]
[313687542,1707587151582,-500.0,0.00038356,30]
[313687543,1707587151606,-500.0,0.00038356,30]
[313687544,1707587151630,-500.0,0.00038356,30]
[313687545,1707587151654,-506.92614961,0.00038356,30]
[313687546,1707587151678,-500.0,0.00038356,30]
[313687547,1707587151702,-500.0,0.00038356,30]
[313687548,1707587151726,-500.0,0.00038356,30]
[313687549,1707587151750,-500.0,0.00038356,30]
[313687550,1707587151773,-500.0,0.00038356,30]
[313687551,1707587151795,-506.91130591,0.00038356,30]
[313687552,1707587151818,-500.0,0.00038356,30]
[313687553,1707587151841,-500.0,0.00038356,30]
[313687554,1707587152029,-500.0,0.00038356,30]
[313687555,1707587152052,-500.0,0.00038356,30]
[313687556,1707587152075,-533.56,0.00038356,30]
[313687557,1707587152098,-500.0,0.00038356,30]
[313687558,1707587152122,-500.0,0.00038356,30]
[313687559,1707587152145,-3112.45,0.00038356,30]
[313687560,1707587152167,-500.0,0.00038356,30]
[313687561,1707587152191,-500.0,0.00038356,30]
[313687562,1707587152214,-500.0,0.00038356,30]
[313687563,1707587152237,-500.0,0.00038356,30]
[313687564,1707587152259,-500.0,0.00038356,30]
[313687565,1707587152282,-500.0,0.00038356,30]
[313687566,1707587152305,-472.76354536,0.00038356,30]
[313687567,1707587152327,-1670.08,0.00038356,30]
[313687568,1707587152350,-500.0,0.00038356,30]
[313687569,1707587152372,-500.0,0.00038356,30]
[313687570,1707587152394,-500.0,0.00038356,30]
[313687571,1707587152417,-500.0,0.00038356,30]
[313687572,1707587152442,-500.0,0.00038356,30]
[313687573,1707587152465,-500.0,0.00038356,30]
[313687574,1707587152487,-500.0,0.00038356,30]
[313687575,1707587152509,-500.0,0.00038356,30]
[313687576,1707587152531,-500.0,0.00038356,30]
[313687577,1707587152553,-499.81440704,0.00038356,30]
[313687578,1707587152578,-678.24,0.00038356,30]
[313687579,1707587152601,-500.0,0.00038356,30]
[313687580,1707587152623,-244.21723722,0.00038356,30]
[313687581,1707587152645,-500.0,0.00038356,30]
[313687582,1707587152668,-500.0,0.00038356,30]
[313687583,1707587152692,-500.0,0.00038356,30]
[313687584,1707587152713,-500.0,0.00038356,30]
[313687585,1707587152740,-500.0,0.00038356,30]
[313687586,1707587152761,-500.0,0.00038356,30]
[313687587,1707587152783,-500.0,0.00038356,30]
[313687588,1707587152806,-500.0,0.00038356,30]
[313687589,1707587152827,-500.0,0.00038356,30]
[313687590,1707587152849,-500.0,0.00038356,30]
[313687591,1707587152871,-500.0,0.00038356,30]
[313687592,1707587152898,-150.0,0.00038356,30]
[313687593,1707587152920,-513.21,0.00038356,30]
[313687594,1707587152945,-500.0,0.00038356,30]
[313687595,1707587152967,-630.74495791,0.00038356,30]
[313687596,1707587152990,-500.0,0.00038356,30]
[313687597,1707587153013,-500.0,0.00038356,30]
[313687598,1707587153038,-500.0,0.00038356,30]
[313687599,1707587153073,-500.0,0.00038356,30]
[313687600,1707587153099,-374.04,0.00038356,30]
[313687601,1707587153122,-500.0,0.00038356,30]
[313687602,1707587153146,-500.0,0.00038356,30]
[313687603,1707587153169,-500.0,0.00038356,30]
[313687604,1707587153192,-1052.2,0.00038356,30]
[313687605,1707587153215,-500.0,0.00038356,30]
[313687606,1707587153237,-500.0,0.00038356,30]
[313687607,1707587153259,-500.0,0.00038356,30]
[313687608,1707587153282,-500.0,0.00038356,30]
[313687609,1707587153304,-476.60551248,0.00038356,30]
[313687610,1707587153328,-500.0,0.00038356,30]
[313687611,1707587153351,-506.34,0.00038356,30]
[313687612,1707587153373,-500.0,0.00038356,30]
[313687613,1707587153396,-500.0,0.00038356,30]
[313687614,1707587153418,-500.0,0.00038356,30]
[313687615,1707587153441,-500.0,0.00038356,30]
[313687616,1707587153463,-500.0,0.00038356,30]
[313687617,1707587153485,-500.0,0.00038356,30]
[313687618,1707587153508,-500.0,0.00038356,30]
[313687619,1707587153531,-500.0,0.00038356,30]
[313687620,1707587153554,-500.0,0.00038356,30]
[313687621,1707587153581,-500.0,0.00038356,30]
[313687622,1707587153603,-500.0,0.00038356,30]
[313687623,1707587153626,-500.0,0.00038356,30]
[313687624,1707587153648,-500.0,0.00038356,30]
[313687625,1707587153673,-1000.0,0.00038356,120]
[313687626,1707587153695,-707.55,0.00038356,30]
[313687627,1707587153718,-836.27,0.00038356,30]
[313687628,1707587153740,-515.69967859,0.00038356,30]
[313687629,1707587153761,-500.0,0.00038356,30]
[313687630,1707587153784,-543.5,0.00038356,30]
[313687631,1707587153812,-500.0,0.00038356,30]
[313687632,1707587153835,-500.0,0.00038356,30]
[313687633,1707587153858,-500.0,0.00038356,30]
[313687634,1707587153880,-592.9,0.00038356,30]
[313687635,1707587153902,-500.0,0.00038356,30]
[313687636,1707587153925,-500.0,0.00038356,30]
[313687637,1707587153947,-500.0,0.00038356,30]
[313687638,1707587153969,-500.0,0.00038356,30]
[313687639,1707587153991,-500.0,0.00038356,30]
[313687640,1707587154013,-500.0,0.00038356,30]
[313687641,1707587154035,-500.0,0.00038356,30]
[313687642,1707587154058,-1295.97,0.00038356,30]
[313687643,1707587154080,-500.0,0.00038356,30]
[313687644,1707587154103,-587.43,0.00038356,30]
[313687645,1707587154125,-925.29,0.00038356,30]
[313687646,1707587154148,-500.0,0.00038356,30]
[313687647,1707587154171,-500.0,0.00038356,30]
[313687648,1707587154195,-500.0,0.00038356,30]
[313687649,1707587154217,-500.0,0.00038356,30]
[313687650,1707587154239,-500.0,0.00038356,30]
[313687651,1707587154263,-500.0,0.00038356,30]
[313687652,1707587154285,-500.0,0.00038356,30]
[313687653,1707587154308,-500.0,0.00038356,30]
[313687654,1707587154331,-653.92,0.00038356,30]
[313687655,1707587154354,-500.0,0.00038356,30]
[313687656,1707587154381,-500.0,0.00038356,30]
[313687657,1707587154403,-500.0,0.00038356,30]
[313687658,1707587154426,-500.0,0.00038356,30]
[313687659,1707587154449,-500.0,0.00038356,30]
[313687660,1707587154639,-2044.92,0.00038356,30]
[313687661,1707587154662,-280.47,0.00038356,30]
[313687662,1707587154686,-500.0,0.00038356,30]
[313687663,1707587154709,-500.0,0.00038356,30]
[313687664,1707587154732,-500.0,0.00038356,30]
[313687665,1707587154755,-500.0,0.00038356,30]
[313687666,1707587154777,-500.0,0.00038356,30]
[313687667,1707587154800,-500.0,0.00038356,30]
[313687668,1707587154822,-500.0,0.00038356,30]
[313687669,1707587154845,-500.0,0.00038356,30]
[313687670,1707587154867,-616.57,0.00038356,30]
[313687671,1707587154890,-722.45,0.00038356,30]
[313687672,1707587154913,-500.0,0.00038356,30]
[313687673,1707587154936,-643.45,0.00038356,30]
[313687674,1707587154966,-531.44,0.00038356,30]
[313687675,1707587154988,-656.66,0.00038356,30]
[313687676,1707587155011,-594.35,0.00038356,30]
[313687677,1707587155032,-512.15714552,0.00038356,30]
[313687678,1707587155055,-500.0,0.00038356,30]
[313687679,1707587155091,-500.0,0.00038356,30]
[313687680,1707587155118,-500.0,0.00038356,30]
[313687681,1707587155143,-500.0,0.00038356,30]
[313687682,1707587155170,-478.76968388,0.00038356,30]
[313687683,1707587155199,-1910.71,0.00038356,30]
[313687684,1707587155225,-500.0,0.00038356,30]
[313687685,1707587155249,-500.0,0.00038356,30]
[313687686,1707587155273,-500.0,0.00038356,30]
[313687687,1707587155297,-500.0,0.00038356,30]
[313687688,1707587155322,-500.0,0.00038356,30]
[313687689,1707587155347,-500.0,0.00038356,30]
[313687690,1707587155372,-853.13,0.00038356,30]
[313687691,1707587155395,-1438.68,0.00038356,30]
[313687692,1707587155419,-179.14381509,0.00038356,30]
[313687693,1707587155444,-502.07537095,0.00038356,30]
[313687694,1707587155467,-500.0,0.00038356,30]
[313687695,1707587155490,-578.66465498,0.00038356,30]
[313687696,1707587155514,-500.0,0.00038356,30]
[313687697,1707587155536,-298.57815826,0.00038356,30]
[313687698,1707587155558,-500.0,0.00038356,30]
[313687699,1707587155588,-500.0,0.00038356,30]
[313687700,1707587155612,-500.0,0.00038356,30]
[313687701,1707587155637,-500.0,0.00038356,30]
[313687702,1707587155663,-636.08,0.00038356,30]
[313687703,1707587155687,-500.0,0.00038356,30]
[313687704,1707587155712,-500.0,0.00038356,30]
[313687705,1707587155738,-500.0,0.00038356,30]
[313687706,1707587155761,-506.82,0.00038356,30]
[313687707,1707587155785,-500.0,0.00038356,30]
[313687708,1707587155809,-500.0,0.00038356,30]
[313687709,1707587155834,-500.0,0.00038356,30]
[313687710,1707587155858,-500.0,0.00038356,30]
[313687711,1707587155882,-500.0,0.00038356,30]
[313687712,1707587155910,-500.0,0.00038356,30]
[313687713,1707587155935,-500.0,0.00038356,30]
[313687714,1707587155960,-517.06202453,0.00038356,30]
[313687715,1707587155985,-500.0,0.00038356,30]
[313687716,1707587156009,-500.0,0.00038356,30]
[313687717,1707587156033,-506.56496068,0.00038356,30]
[313687718,1707587156058,-1572.11,0.00038356,30]
[313687719,1707587156082,-500.0,0.00038356,30]
[313687720,1707587156107,-1421.05,0.00038356,30]
[313687721,1707587156132,-500.0,0.00038356,30]
[313687722,1707587156156,-500.0,0.00038356,30]
[313687723,1707587156181,-500.0,0.00038356,30]
[313687724,1707587156208,-500.0,0.00038356,30]
[313687725,1707587156234,-500.0,0.00038356,30]
[313687726,1707587156258,-500.0,0.00038356,30]
[313687727,1707587156283,-500.0,0.00038356,30]
[313687728,1707587156308,-500.0,0.00038356,30]
[313687729,1707587156332,-500.0,0.00038356,30]
[313687730,1707587156357,-566.36,0.00038356,30]
[313687731,1707587156382,-248.62197323,0.00038356,30]
[313687732,1707587156407,-1214.77,0.00038356,30]
[313687733,1707587156433,-1096.05,0.00038356,30]
[313687734,1707587156458,-500.0,0.00038356,30]
[313687735,1707587156483,-500.0,0.00038356,30]
[313687736,1707587156508,-626.03,0.00038356,30]
[313687737,1707587156532,-855.36,0.00038356,30]
[313687738,1707587156557,-500.0,0.00038356,30]
[313687739,1707587156589,-693.6,0.00038356,30]
[313687740,1707587156615,-500.0,0.00038356,30]
[313687741,1707587156641,-500.0,0.00038356,30]
[313687742,1707587156666,-614.60702086,0.00038356,30]
[313687743,1707587156692,-500.0,0.00038356,30]
[313687744,1707587156716,-500.0,0.00038356,30]
[313687745,1707587156742,-500.0,0.00038356,30]
[313687746,1707587156765,-500.0,0.00038356,30]
[313687747,1707587156790,-500.0,0.00038356,30]
[313687748,1707587156814,-1343.72,0.00038356,30]
[313687749,1707587156838,-500.0,0.00038356,30]
[313687750,1707587156861,-3451.1,0.00038356,30]
[313687751,1707587156885,-500.0,0.00038356,30]
[313687752,1707587156909,-630.33,0.00038356,30]
[313687753,1707587156934,-500.0,0.00038356,30]
[313687754,1707587156959,-500.0,0.00038356,30]
[313687755,1707587156983,-500.0,0.00038356,30]
[313687756,1707587157008,-1359.44,0.00038356,30]
[313687757,1707587157032,-617.86,0.00038356,30]
[313687758,1707587157057,-746.23,0.00038356,30]
[313687759,1707587157081,-500.0,0.00038356,30]
[313687760,1707587157104,-500.0,0.00038356,30]
[313687761,1707587157128,-500.0,0.00038356,30]
[313687762,1707587157152,-712.75,0.00038356,30]
[313687763,1707587157191,-849.56,0.00038356,30]
[313687764,1707587157219,-500.0,0.00038356,30]
[313687765,1707587157471,-1189.34,0.00038356,30]
[313687766,1707587157496,-515.6,0.00038356,30]
[313687767,1707587157520,-500.0,0.00038356,30]
[313687768,1707587157542,-500.00000071,0.00038356,30]
[313687769,1707587157570,-500.0,0.00038356,30]
[313687770,1707587157596,-500.0,0.00038356,30]
[313687771,1707587157620,-500.0,0.00038356,30]
[313687772,1707587157643,-731.92,0.00038356,30]
[313687773,1707587157671,-500.0,0.00038356,30]
[313687774,1707587157698,-1114.3,0.00038356,30]
[313687775,1707587157723,-500.0,0.00038356,30]
[313687776,1707587157748,-500.0,0.00038356,30]
[313687777,1707587157771,-649.03883801,0.00038356,30]
[313687778,1707587157795,-500.0,0.00038356,30]
[313687779,1707587157820,-500.0,0.00038356,30]
[313687780,1707587157848,-500.0,0.00038356,30]
[313687781,1707587157872,-500.0,0.00038356,30]
[313687782,1707587157897,-1121.74,0.00038356,30]
[313687783,1707587157921,-525.58,0.00038356,30]
[313687784,1707587157946,-977.73,0.00038356,30]
[313687785,1707587157971,-500.0,0.00038356,30]
[313687786,1707587157996,-561.13,0.00038356,30]
[313687787,1707587158021,-947.65,0.00038356,30]
[313687788,1707587158045,-1026.02,0.00038356,30]
[313687789,1707587158076,-500.0,0.00038356,30]
[313687790,1707587158102,-500.0,0.00038356,30]
[313687791,1707587158127,-1242.56,0.00038356,30]
[313687792,1707587158151,-500.0,0.00038356,30]
[313687793,1707587158177,-645.83,0.00038356,30]
[313687794,1707587158203,-1691.5,0.00038356,30]
[313687795,1707587158227,-500.0,0.00038356,30]
[313687796,1707587158252,-500.0,0.00038356,30]
[313687797,1707587158279,-500.0,0.00038356,30]
[313687798,1707587158302,-500.0,0.00038356,30]
[313687799,1707587158331,-500.0,0.00038356,30]
[313687800,1707587158354,-500.0,0.00038356,30]
[313687801,1707587158379,-873.15,0.00038356,30]
[313687802,1707587158403,-500.0,0.00038356,30]
[313687803,1707587158427,-500.0,0.00038356,30]
[313687804,1707587158450,-500.0,0.00038356,30]
[313687805,1707587158474,-708.27,0.00038356,30]
[313687806,1707587158498,-500.0,0.00038356,30]
[313687807,1707587158523,-529.55,0.00038356,30]
[313687808,1707587158546,-573.72461784,0.00038356,30]
[313687809,1707587158571,-779.81,0.00038356,30]
[313687810,1707587158597,-500.0,0.00038356,30]
[313687811,1707587158621,-1056.2,0.00038356,30]
[313687812,1707587158644,-624.425735,0.00038356,30]
[313687813,1707587158670,-500.0,0.00038356,30]
[313687814,1707587158694,-570.50515033,0.00038356,30]
[313687815,1707587158717,-500.0,0.00038356,30]
[313687816,1707587158742,-519.82,0.00038356,30]
[313687817,1707587158765,-500.0,0.00038356,30]
[313687818,1707587158790,-970.19,0.00038356,30]
[313687819,1707587158814,-678.81,0.00038356,30]
[313687820,1707587158838,-500.0,0.00038356,30]
[313687821,1707587158862,-532.18825212,0.00038356,30]
[313687822,1707587158886,-500.0,0.00038356,30]
[313687823,1707587158909,-705.9,0.00038356,30]
[313687824,1707587158934,-500.0,0.00038356,30]
[313687825,1707587158957,-421.47470251,0.00038356,30]
[313687826,1707587158983,-1052.93,0.00038356,30]
[313687827,1707587159008,-512.8400166,0.00038356,30]
[313687828,1707587159032,-500.0,0.00038356,30]
[313687829,1707587159056,-500.0,0.00038356,30]
[313687830,1707587159082,-500.0,0.00038356,30]
[313687831,1707587159106,-500.0,0.00038356,30]
[313687832,1707587159132,-684.62,0.00038356,30]
[313687833,1707587159157,-711.92,0.00038356,30]
[313687834,1707587159183,-1004.11,0.00038356,30]
[313687835,1707587159208,-500.0,0.00038356,30]
[313687836,1707587159234,-500.0,0.00038356,30]
[313687837,1707587159259,-667.08,0.00038356,30]
[313687838,1707587159283,-500.0,0.00038356,30]
[313687839,1707587159308,-754.28,0.00038356,30]
[313687840,1707587159333,-500.0,0.00038356,30]
[313687841,1707587159357,-500.0,0.00038356,30]
[313687842,1707587159382,-500.0,0.00038356,30]
[313687843,1707587159409,-500.0,0.00038356,30]
[313687844,1707587159434,-500.0,0.00038356,30]
[313687845,1707587159459,-725.08,0.00038356,30]
[313687846,1707587159485,-500.0,0.00038356,30]
[313687847,1707587159509,-509.63,0.00038356,30]
[313687848,1707587159533,-1382.71,0.00038356,30]
[313687849,1707587159558,-500.0,0.00038356,30]
[313687850,1707587159582,-1447.85,0.00038356,30]
[313687851,1707587159606,-1223.13,0.00038356,30]
[313687852,1707587159631,-2091.65,0.00038356,30]
[313687853,1707587159657,-500.0,0.00038356,30]
[313687854,1707587159683,-969.91,0.00038356,30]
[313687855,1707587159708,-611.01,0.00038356,30]
[313687856,1707587159732,-500.0,0.00038356,30]
[313687857,1707587159759,-507.90036444,0.00038356,30]
[313687858,1707587159784,-500.0,0.00038356,30]
[313687859,1707587159808,-500.0,0.00038356,30]
[313687860,1707587159833,-1057.09,0.00038356,30]
[313687861,1707587159857,-672.89,0.00038356,30]
[313687862,1707587159881,-500.0,0.00038356,30]
[313687863,1707587159905,-250.0,0.00038356,30]
[313687864,1707587159927,-500.0,0.00038356,30]
[313687865,1707587159950,-500.0,0.00038356,30]
[313687866,1707587159973,-503.21473422,0.00038356,30]
[313687867,1707587159998,-1517.8,0.00038356,30]
[313687868,1707587160022,-1316.97,0.00038356,30]
[313687869,1707587160047,-500.0,0.00038356,30]
[313687870,1707587160244,-509.47503095,0.00038356,30]
[313687871,1707587160270,-738.23,0.00038356,30]
[313687872,1707587160294,-500.0,0.00038356,30]
[313687873,1707587160319,-1065.11,0.00038356,30]
[313687874,1707587160342,-1631.07,0.00038356,30]
[313687875,1707587160368,-500.0,0.00038356,30]
[313687876,1707587160391,-500.0,0.00038356,30]
[313687877,1707587160414,-500.0,0.00038356,30]
[313687878,1707587160437,-500.0,0.00038356,30]
[313687879,1707587160461,-500.0,0.00038356,30]
[313687880,1707587160484,-706.87,0.00038356,30]
[313687881,1707587160507,-765.85,0.00038356,30]
[313687882,1707587160531,-500.0,0.00038356,30]
[313687883,1707587160556,-1109.61,0.00038356,30]
[313687884,1707587160582,-500.0,0.00038356,30]
[313687885,1707587160605,-509.02244895,0.00038356,30]
[313687886,1707587160628,-1493.22,0.00038356,30]
[313687887,1707587160653,-500.0,0.00038356,30]
[313687888,1707587160678,-500.0,0.00038356,30]
[313687889,1707587160701,-500.0,0.00038356,30]
[313687890,1707587160727,-649.09340516,0.00038356,30]
[313687891,1707587160750,-500.0,0.00038356,30]
[313687892,1707587160774,-500.0,0.00038356,30]
[313687893,1707587160798,-1173.55,0.00038356,30]
[313687894,1707587160821,-423.07862826,0.00038356,30]
[313687895,1707587160846,-514.5,0.00038356,30]
[313687896,1707587160869,-500.0,0.00038356,30]
[313687897,1707587160892,-509.48866044,0.00038356,30]
[313687898,1707587160917,-2263.23,0.00038356,30]
[313687899,1707587160941,-628.62,0.00038356,30]
[313687900,1707587160965,-500.0,0.00038356,30]
[313687901,1707587160988,-500.0,0.00038356,30]
[313687902,1707587161011,-500.0,0.00038356,30]
[313687903,1707587161034,-509.28875317,0.00038356,30]
[313687904,1707587161056,-1076.65,0.00038356,30]
[313687905,1707587161080,-500.0,0.00038356,30]
[313687906,1707587161103,-1197.78,0.00038356,30]
[313687907,1707587161128,-1543.54,0.00038356,30]
[313687908,1707587161151,-500.0,0.00038356,30]
[313687909,1707587161177,-500.0,0.00038356,30]
[313687910,1707587161201,-500.0,0.00038356,30]
[313687911,1707587161224,-1126.72,0.00038356,30]
[313687912,1707587161247,-500.0,0.00038356,30]
[313687913,1707587161272,-500.0,0.00038356,30]
[313687914,1707587161296,-500.0,0.00038356,30]
[313687915,1707587161319,-500.0,0.00038356,30]
[313687916,1707587161342,-1151.29,0.00038356,30]
[313687917,1707587161366,-574.65,0.00038356,30]
[313687918,1707587161389,-1633.0,0.00038356,30]
[313687919,1707587161412,-500.0,0.00038356,30]
[313687920,1707587161437,-500.0,0.00038356,30]
[313687921,1707587161461,-1001.15,0.00038356,30]
[313687922,1707587161486,-500.0,0.00038356,30]
[313687923,1707587161509,-501.10386128,0.00038356,30]
[313687924,1707587161532,-516.71642263,0.00038356,30]
[313687925,1707587161555,-517.68421135,0.00038356,30]
[313687926,1707587161586,-500.0,0.00038356,30]
[313687927,1707587161618,-500.0,0.00038356,30]
[313687928,1707587161642,-631.57,0.00038356,30]
[313687929,1707587161670,-500.0,0.00038356,30]
[313687930,1707587161693,-500.0,0.00038356,30]
[313687931,1707587161717,-500.0,0.00038356,30]
[313687932,1707587161743,-500.0,0.00038356,30]
[313687933,1707587161766,-500.0,0.00038356,30]
[313687934,1707587161794,-500.0,0.00038356,30]
[313687935,1707587161817,-500.0,0.00038356,30]
[313687936,1707587161840,-500.0,0.00038356,30]
[313687937,1707587161864,-500.0,0.00038356,30]
[313687938,1707587161888,-500.0,0.00038356,30]
[313687939,1707587161911,-1429.03,0.00038356,30]
[313687940,1707587161934,-500.0,0.00038356,30]
[313687941,1707587161957,-2260.97,0.00038356,30]
[313687942,1707587161979,-513.7596338,0.00038356,30]
[313687943,1707587162003,-500.0,0.00038356,30]